bitfinex/quotes_SOLUSD_20251216
["timestamp","ask_amount","ask_price","bid_price","bid_amount"]
[1765913167980,7.85632136,127.29,127.26,0.66]
[1765913168143,14.49057112,127.29,127.26,0.66]
[1765913168343,6.63424976,127.28,127.25,0.66]
[1765913169673,14.49107654,127.28,127.25,9.28]
[1765913170877,6.63424976,127.27,127.24,0.66]
[1765913171055,6.63424976,127.27,127.24,9.28]
[1765913171576,14.49178339,127.27,127.25,0.66]
[1765913171874,6.63424976,127.26,127.24,8.62]
[1765913172082,0.51,127.24,127.2,0.66]
[1765913172284,36.1208117,127.27,127.21,0.66]
[1765913172285,6.63424976,127.23,127.21,0.66]
[1765913172477,6.63424976,127.24,127.21,0.66]
[1765913172946,10.94767296,127.26,127.21,0.66]
[1765913173146,6.63424976,127.24,127.21,0.66]
[1765913173764,6.63424976,127.23,127.2,9.28]
[1765913174076,6.63424976,127.22,127.17,18.96076893]
[1765913174375,7.14424976,127.22,127.18,17.14276045]
[1765913174565,6.63424976,127.22,127.19,0.66]
[1765913174760,28.01739871,127.24,127.19,0.66]
[1765913174960,6.63424976,127.22,127.19,0.66]
[1765913175280,15.00296258,127.25,127.2,0.66]
[1765913175583,14.49296258,127.25,127.2,0.66]
[1765913175757,14.49296258,127.25,127.21,7.86101721]
[1765913176070,6.63424976,127.24,127.22,0.66]
[1765913176273,14.49296258,127.25,127.21,8.52101721]
[1765913176480,6.63424976,127.27,127.22,0.66]
[1765913176651,0.51,127.29,127.23,0.66]
[1765913176652,6.63424976,127.28,127.23,0.66]
[1765913177768,6.63424976,127.28,127.25,0.66]
[1765913177769,14.49106092,127.28,127.25,0.66]
[1765913177970,14.49106092,127.28,127.25,9.28]
[1765913178177,7.85681116,127.28,127.26,0.66]
[1765913178350,14.49106092,127.28,127.25,9.28]
[1765913179754,10.43767296,127.29,127.27,0.66]
[1765913180376,25.43807485,127.29,127.25,9.28]
[1765913180682,6.63424976,127.28,127.25,9.28]
[1765913181579,6.63424976,127.28,127.24,7.85899967]
[1765913181782,6.63424976,127.28,127.26,0.66]
[1765913182154,24.92807485,127.29,127.26,0.66]
[1765913182581,24.92807485,127.29,127.25,17.13840485]
[1765913182582,25.43807485,127.29,127.25,17.13840485]
[1765913182769,24.92807485,127.29,127.26,0.66]
[1765913183094,6.63424976,127.28,127.25,7.85840485]
[1765913183302,6.63424976,127.28,127.25,8.62]
[1765913183657,17.07192272,127.29,127.26,0.66]
[1765913184363,10.43767296,127.29,127.26,0.66]
[1765913184554,17.07192272,127.29,127.26,0.66]
[1765913184760,24.92808489,127.29,127.26,0.66]
[1765913185461,6.63424976,127.28,127.25,9.28]
[1765913185981,24.92808489,127.29,127.25,16.477986]
[1765913186287,24.92808489,127.29,127.26,0.66]
[1765913186870,18.29383513,127.29,127.27,0.66]
[1765913187286,4.10627083,127.32,127.27,0.66]
[1765913187470,7.85453448,127.32,127.29,0.66]
[1765913187867,14.48878424,127.32,127.29,0.66]
[1765913188476,6.63424976,127.31,127.29,0.66]
[1765913188675,14.48878424,127.32,127.29,0.66]
[1765913189162,6.63424976,127.3,127.26,0.66]
[1765913189369,0.51,127.31,127.27,9.28]
[1765913189582,6.63424976,127.31,127.28,0.66]
[1765913189796,14.48878424,127.32,127.28,0.66]
[1765913190692,14.48878424,127.32,127.29,0.66]
[1765913191771,6.63424976,127.31,127.29,0.66]
[1765913191970,6.63424976,127.31,127.29,9.28]
[1765913192173,7.14424976,127.3,127.26,9.28]
[1765913192473,0.51,127.3,127.26,17.13789609]
[1765913192678,6.63424976,127.29,127.26,17.13789609]
[1765913193695,14.49039048,127.29,127.26,17.13789609]
[1765913194693,7.85614072,127.29,127.26,16.47789609]
[1765913194883,7.85614072,127.29,127.26,17.13789609]
[1765913196391,15.00002606,127.3,127.26,17.13789609]
[1765913196969,6.63424976,127.32,127.27,7.29424976]
[1765913197170,10.94767296,127.33,127.28,0.66]
[1765913197370,17.07192272,127.33,127.29,8.62]
[1765913197585,14.48748385,127.34,127.3,0.66]
[1765913197789,6.63424976,127.33,127.3,0.66]
[1765913197991,6.63424976,127.33,127.3,9.28]
[1765913198670,14.99748385,127.34,127.3,9.28]
[1765913199071,14.48748385,127.34,127.31,0.66]
[1765913199490,18.59007927,127.35,127.31,0.66]
[1765913200079,10.73746068,127.35,127.31,0.66]
[1765913200581,7.85205387,127.36,127.31,11.39746068]
[1765913200582,10.73746068,127.36,127.31,11.39746068]
[1765913200899,10.73746068,127.36,127.32,0.66]
[1765913201104,10.73746068,127.36,127.33,17.13360873]
[1765913201581,15.0522648,127.38,127.34,0.66]
[1765913201783,1e-08,127.38,127.35,0.66]
[1765913201979,18.58804633,127.38,127.36,9.28]
[1765913202205,10.73746069,127.38,127.36,9.28]
[1765913202406,10.73746069,127.38,127.36,8.62]
[1765913202709,18.58807391,127.38,127.36,8.62]
[1765913203097,10.73746069,127.38,127.36,8.62]
[1765913203589,10.73746068,127.37,127.35,0.66]
[1765913203791,7.85087917,127.38,127.35,8.6]
[1765913203792,10.73746068,127.36,127.35,8.6]
[1765913203985,10.73395333,127.36,127.35,8.6]
[1765913204303,8.36087917,127.38,127.35,8.6]
[1765913204488,10.73395333,127.37,127.35,9.26]
[1765913205299,18.58511123,127.37,127.35,9.26]
[1765913206417,18.58511123,127.37,127.35,8.6]
[1765913207618,10.73395333,127.37,127.35,8.6]
[1765913208627,1e-08,127.38,127.36,0.66]
[1765913208785,10.73395334,127.38,127.36,0.66]
[1765913209419,10.73395334,127.38,127.35,17.11227578]
[1765913210296,1e-08,127.38,127.35,16.45227578]
[1765913210517,1e-08,127.38,127.36,0.66]
[1765913211716,1e-08,127.38,127.37,8.51114234]
[1765913213310,0.51,127.37,127.36,8.6]
[1765913213494,10.73395333,127.37,127.36,8.6]
[1765913213706,0.51000001,127.38,127.33,7.85313102]
[1765913213906,10.73395333,127.36,127.34,8.6]
[1765913214112,10.73395333,127.37,127.34,8.6]
[1765913214320,10.73395333,127.36,127.34,8.6]
[1765913214511,11.24395333,127.35,127.31,8.51446286]
[1765913214718,10.73395333,127.35,127.32,17.11422261]
[1765913215592,7.85237534,127.35,127.32,17.11422261]
[1765913216095,11.24395333,127.36,127.32,17.11422261]
[1765913217189,19.09597405,127.36,127.32,17.11422261]
[1765913217809,19.09597405,127.36,127.33,0.66]
[1765913218126,19.09597405,127.36,127.32,17.11422261]
[1765913218324,10.73395333,127.34,127.31,8.51451904]
[1765913218621,11.24395333,127.33,127.29,8.51558718]
[1765913218800,11.24395333,127.33,127.31,8.6]
[1765913218996,10.73395333,127.32,127.28,7.85643854]
[1765913219219,36.0814177,127.36,127.28,7.85643854]
[1765913219220,0.51,127.35,127.29,8.6]
[1765913219420,10.73395333,127.32,127.29,9.26]
[1765913219608,18.58824208,127.32,127.29,17.11607096]
[1765913220011,10.73395333,127.31,127.28,8.51659435]
[1765913220327,10.73395333,127.31,127.29,8.6]
[1765913221326,18.58897439,127.31,127.29,8.6]
[1765913222001,7.85502106,127.31,127.29,8.6]
[1765913222201,10.73395333,127.31,127.29,8.6]
[1765913222908,10.73395333,127.31,127.29,9.26]
[1765913224400,18.5889772,127.31,127.29,9.26]
[1765913227136,18.5889772,127.31,127.29,8.6]
[1765913227502,11.24395333,127.3,127.26,0.69]
[1765913227698,10.73395333,127.29,127.27,9.29]
[1765913227904,11.24395333,127.3,127.27,9.29]
[1765913228824,11.24395333,127.29,127.26,0.69]
[1765913229127,19.10059838,127.29,127.27,8.6]
[1765913229315,19.10059838,127.29,127.25,18.29617829]
[1765913229316,11.24395333,127.28,127.25,0.69]
[1765913229514,10.73395333,127.27,127.25,9.29]
[1765913229728,10.73395333,127.26,127.24,8.6]
[1765913230219,10.43767296,127.28,127.22,0.69]
[1765913230420,10.73395333,127.25,127.23,8.6]
[1765913231031,18.5929352,127.25,127.23,8.6]
[1765913231206,19.1029352,127.25,127.23,8.6]
[1765913231411,18.5929352,127.25,127.23,8.6]
[1765913233130,11.24395333,127.24,127.2,8.5513313]
[1765913233312,11.24395333,127.24,127.21,8.62]
[1765913233628,10.73395333,127.22,127.19,0.69]
[1765913233833,10.73395333,127.21,127.19,8.62]
[1765913234324,10.73395333,127.22,127.19,9.31]
[1765913234935,10.94767296,127.22,127.18,0.69]
[1765913235109,18.59497054,127.21,127.18,9.31]
[1765913235626,18.59497054,127.21,127.18,17.17286248]
[1765913236126,10.73395333,127.19,127.16,8.55384729]
[1765913236311,10.73395333,127.19,127.17,8.62]
[1765913236839,10.73395333,127.18,127.15,8.55456797]
[1765913237041,19.10692587,127.18,127.15,0.69]
[1765913237246,19.10692587,127.18,127.15,9.31]
[1765913237536,18.59692587,127.18,127.15,17.17471298]
[1765913238738,18.59692587,127.18,127.15,9.31]
[1765913238938,19.10692587,127.18,127.15,9.31]
[1765913239314,19.10692587,127.18,127.15,17.1745019]
[1765913239517,19.65462397,127.2,127.15,17.1745019]
[1765913239518,7.862396,127.19,127.16,0.69]
[1765913239717,10.73395333,127.18,127.16,0.69]
[1765913240540,10.43767296,127.2,127.17,7.86348981]
[1765913240840,10.73395333,127.2,127.18,0.69]
[1765913241047,10.73395333,127.2,127.18,9.31]
[1765913242139,10.73395333,127.19,127.18,8.62]
[1765913242542,0.51,127.18,127.14,7.86498543]
[1765913242846,0.51,127.18,127.15,17.17472302]
[1765913242847,10.73395333,127.18,127.15,17.17472302]
[1765913243024,10.73395333,127.18,127.16,0.69]
[1765913243222,10.73395333,127.18,127.15,16.48472302]
[1765913243223,10.73395333,127.17,127.15,9.31]
[1765913243720,10.73395333,127.18,127.15,17.17462048]
[1765913243922,10.73395333,127.18,127.15,9.31]
[1765913244119,18.59727977,127.18,127.15,9.31]
[1765913244347,10.73395333,127.17,127.15,9.31]
[1765913245446,8.37249324,127.19,127.15,17.17437382]
[1765913245743,10.73395333,127.18,127.15,17.17437382]
[1765913246527,10.73395333,127.17,127.15,9.31]
[1765913247524,7.86314631,127.18,127.15,9.31]
[1765913247743,19.10649155,127.19,127.16,0.69]
[1765913247946,18.59649155,127.19,127.16,0.69]
[1765913248243,10.73395333,127.18,127.16,0.69]
[1765913248842,10.73395333,127.17,127.11,30.10474212]
[1765913249025,0.51,127.17,127.13,0.69]
[1765913249339,10.73395333,127.16,127.14,9.31]
[1765913249837,10.73395333,127.17,127.14,8.62]
[1765913250045,10.73395333,127.17,127.15,0.69]
[1765913251336,10.73395333,127.16,127.14,9.31]
[1765913251523,10.73395333,127.16,127.14,0.69]
[1765913251849,10.73395333,127.16,127.14,9.31]
[1765913252032,10.73395333,127.16,127.13,0.69]
[1765913252236,10.73395333,127.16,127.14,8.62]
[1765913252435,8.37393339,127.17,127.14,8.62]
[1765913252638,10.73395333,127.16,127.14,8.62]
[1765913252848,18.59861825,127.16,127.14,8.62]
[1765913253349,0.51,127.14,127.1,0.69]
[1765913253730,10.73395333,127.13,127.1,9.31]
[1765913253933,10.73395333,127.13,127.11,0.72]
[1765913254132,10.73395333,127.14,127.11,0.72]
[1765913254872,21.17162629,127.16,127.12,0.69]
[1765913255153,10.73395333,127.16,127.13,9.31]
[1765913256131,18.5983164,127.16,127.13,16.48584682]
[1765913256334,10.73395333,127.16,127.14,0.69]
[1765913256548,18.59810322,127.16,127.14,0.69]
[1765913257659,7.86348981,127.17,127.14,0.69]
[1765913257837,10.73395333,127.16,127.14,0.69]
[1765913258433,11.24395333,127.15,127.13,8.62]
[1765913258633,10.73395333,127.14,127.11,0.69]
[1765913258849,27.52221435,127.17,127.11,0.69]
[1765913258850,10.73395333,127.13,127.12,8.62]
[1765913260332,18.5999173,127.13,127.12,8.62]
[1765913260958,7.86564361,127.14,127.12,8.62]
[1765913261160,0.51,127.18,127.13,0.69]
[1765913261460,6.62518662,127.17,127.13,0.69]
[1765913261648,6.62518662,127.17,127.14,9.31]
[1765913262162,14.48892159,127.17,127.14,9.31]
[1765913262851,14.48892159,127.17,127.14,8.62]
[1765913263165,6.62518662,127.16,127.14,8.62]
[1765913263466,2.47443212,127.15,127.13,8.62]
[1765913263645,2.47443212,127.14,127.13,8.62]
[1765913264362,7.86373497,127.17,127.13,8.62]
[1765913264664,2.47443212,127.15,127.13,9.31]
[1765913265751,2.47443212,127.15,127.13,17.17584123]
[1765913265947,10.33802509,127.17,127.14,0.69]
[1765913266354,2.47443212,127.18,127.14,0.69]
[1765913267347,2.47443212,127.18,127.15,8.5547267]
[1765913267659,2.47443212,127.18,127.16,9.31]
[1765913268469,10.33733185,127.18,127.16,8.62]
[1765913268772,2.98443212,127.17,127.16,8.62]
[1765913268972,2.47443212,127.17,127.16,8.62]
[1765913270691,10.33792193,127.17,127.16,8.62]
[1765913271170,10.33792193,127.17,127.12,19.66536891]
[1765913271171,0.51,127.16,127.12,0.69]
[1765913271344,28.03221435,127.17,127.13,0.69]
[1765913271544,2.47443212,127.15,127.13,0.69]
[1765913272682,2.47443212,127.15,127.13,9.31]
[1765913273050,2.47443212,127.16,127.13,17.17572807]
[1765913273669,2.47443212,127.16,127.13,9.31]
[1765913274073,2.47443212,127.15,127.13,8.62]
[1765913274255,2.47443212,127.15,127.13,9.31]
[1765913274463,2.47443212,127.15,127.11,8.55697251]
[1765913274464,2.47443212,127.14,127.11,8.55697251]
[1765913274656,2.47443212,127.14,127.09,19.67006507]
[1765913274657,2.47443212,127.12,127.09,0.69]
[1765913274861,0.51,127.13,127.09,9.31]
[1765913274862,2.47443212,127.11,127.09,9.31]
[1765913275769,2.47578886,127.11,127.09,9.31]
[1765913276279,7.86685755,127.12,127.09,9.31]
[1765913276476,10.34264641,127.12,127.09,9.31]
[1765913276966,7.86685755,127.12,127.09,9.31]
[1765913277166,10.34264641,127.12,127.09,9.31]
[1765913278592,2.47578886,127.12,127.1,0.69]
[1765913278752,10.34188636,127.13,127.1,0.69]
[1765913279484,20.77904461,127.14,127.11,0.69]
[1765913280977,10.34137165,127.14,127.11,8.55720029]
[1765913281353,10.34137165,127.14,127.11,0.69]
[1765913282881,10.34137165,127.14,127.11,8.62]
[1765913282882,2.47578886,127.12,127.11,8.62]
[1765913284286,10.34208366,127.13,127.12,0.66]
[1765913284493,10.34142053,127.14,127.12,0.66]
[1765913284984,10.34142053,127.14,127.11,9.28]
[1765913286471,10.34083188,127.15,127.12,0.66]
[1765913286685,7.86504302,127.15,127.12,0.66]
[1765913286862,2.47578886,127.15,127.12,0.66]
[1765913287061,7.86484135,127.15,127.13,0.66]
[1765913287790,2.47578886,127.16,127.13,0.66]
[1765913287791,10.34022575,127.16,127.13,0.66]
[1765913288285,14.54804789,127.18,127.14,8.62]
[1765913288464,10.33839518,127.19,127.15,0.66]
[1765913288665,2.47578886,127.18,127.15,0.66]
[1765913288865,2.47578886,127.16,127.13,0.66]
[1765913289067,2.47578886,127.16,127.14,8.62]
[1765913289684,2.47578886,127.15,127.12,7.86627087]
[1765913289859,2.47578886,127.14,127.13,8.62]
[1765913290180,2.47578886,127.14,127.11,0.66]
[1765913290388,2.47578886,127.14,127.11,17.14715269]
[1765913290564,2.47578886,127.13,127.11,9.28]
[1765913291476,10.85180419,127.13,127.1,0.66]
[1765913291664,10.85180419,127.13,127.11,8.62]
[1765913291978,10.34180419,127.13,127.11,8.62]
[1765913292569,27.53092526,127.13,127.1,9.28]
[1765913292769,2.47578886,127.12,127.1,9.28]
[1765913293582,10.3426764,127.12,127.1,9.28]
[1765913294373,10.34201204,127.13,127.11,0.66]
[1765913294583,7.86622318,127.13,127.11,0.66]
[1765913294776,10.34201204,127.13,127.11,0.66]
[1765913296385,2.47578886,127.14,127.11,7.86681201]
[1765913296574,7.86481033,127.15,127.12,0.66]
[1765913296575,10.34059919,127.15,127.12,0.66]
[1765913297066,19.65984198,127.17,127.14,0.66]
[1765913297067,10.33946056,127.17,127.14,0.66]
[1765913297384,10.33866038,127.18,127.14,0.66]
[1765913297571,10.33832505,127.19,127.14,0.66]
[1765913298082,7.86253619,127.19,127.14,0.66]
[1765913298283,10.33832505,127.19,127.16,0.66]
[1765913298590,10.33832505,127.19,127.16,9.28]
[1765913300088,10.33832505,127.19,127.16,8.62]
[1765913300089,2.98578886,127.18,127.16,8.62]
[1765913300286,2.47578886,127.18,127.16,8.62]
[1765913300590,7.86253619,127.19,127.13,7.86584856]
[1765913300591,2.47578886,127.17,127.13,7.86584856]
[1765913300782,2.47578886,127.16,127.14,8.62]
[1765913301290,10.34045339,127.16,127.14,8.62]
[1765913301883,2.47578886,127.15,127.14,8.62]
[1765913302461,2.47578886,127.15,127.12,0.66]
[1765913302462,2.47578886,127.15,127.13,0.66]
[1765913302681,2.47578886,127.15,127.13,9.28]
[1765913303882,2.47578886,127.15,127.13,0.66]
[1765913304080,2.47578886,127.14,127.1,7.86751375]
[1765913304285,2.47578886,127.14,127.11,16.48718108]
[1765913304594,2.47578886,127.14,127.12,9.28]
[1765913304973,2.47578886,127.14,127.11,0.66]
[1765913305176,2.98578886,127.14,127.12,8.62]
[1765913305390,2.47578886,127.14,127.12,8.62]
[1765913305589,10.34173267,127.14,127.12,8.62]
[1765913305792,2.47578886,127.13,127.12,8.62]
[1765913306297,2.98578886,127.13,127.07,30.11109274]
[1765913306479,2.98578886,127.13,127.09,0.66]
[1765913306480,2.47578886,127.12,127.09,0.66]
[1765913307798,2.47578886,127.11,127.08,0.66]
[1765913308002,2.47578886,127.11,127.09,8.62]
[1765913308375,2.47578886,127.11,127.09,9.28]
[1765913308598,2.47578886,127.11,127.09,8.62]
[1765913308994,2.47578886,127.1,127.08,8.62]
[1765913309199,2.47578886,127.1,127.08,9.28]
[1765913309492,2.47578886,127.11,127.09,0.66]
[1765913309990,10.34320791,127.11,127.09,0.66]
[1765913311083,10.34258657,127.12,127.1,0.66]
[1765913311276,10.34258657,127.12,127.09,0.66]
[1765913311688,2.47578886,127.11,127.09,0.66]
[1765913312288,10.34299782,127.11,127.09,0.66]
[1765913312488,10.34299782,127.11,127.08,16.48882411]
[1765913312691,10.34299782,127.11,127.08,17.14882411]
[1765913312896,10.34299782,127.11,127.08,9.28]
[1765913313599,2.47578886,127.1,127.08,8.62]
[1765913313801,2.98578886,127.1,127.08,8.62]
[1765913314104,2.47578886,127.1,127.08,8.62]
[1765913314606,10.34405253,127.1,127.08,8.62]
[1765913314804,7.86826367,127.1,127.08,8.62]
[1765913315101,10.34405253,127.1,127.08,9.33]
[1765913316502,10.34405253,127.1,127.08,0.71]
[1765913316694,7.86826367,127.1,127.08,0.71]
[1765913317008,19.66800409,127.11,127.08,0.71]
[1765913317009,7.8675148,127.11,127.09,0.71]
[1765913317201,2.47578886,127.12,127.09,0.71]
[1765913317202,10.34268494,127.12,127.09,0.71]
[1765913318709,10.34268494,127.12,127.1,0.71]
[1765913319407,10.34268494,127.12,127.09,9.33]
[1765913319790,2.47578886,127.11,127.09,9.33]
[1765913320504,7.86689608,127.12,127.09,9.33]
[1765913320704,10.34268494,127.12,127.1,0.71]
[1765913320906,2.98578886,127.11,127.08,8.62]
[1765913321111,2.47578886,127.11,127.08,9.33]
[1765913321486,2.47578886,127.11,127.08,0.71]
[1765913321704,2.47578886,127.11,127.09,8.62]
[1765913322010,7.86782061,127.1,127.09,8.62]
[1765913322318,10.34360947,127.1,127.08,8.62]
[1765913322610,30.523161,127.1,127.07,8.62]
[1765913322791,2.47578886,127.09,127.07,8.62]
[1765913323394,11.7372685,127.1,127.08,0.71]
[1765913323596,11.7372685,127.1,127.07,9.33]
[1765913324521,12.2472685,127.1,127.07,9.33]
[1765913324724,8.37782061,127.1,127.07,9.33]
[1765913324920,12.2472685,127.1,127.07,9.33]
[1765913325298,7.86782061,127.1,127.07,9.33]
[1765913325487,12.2472685,127.1,127.07,0.71]
[1765913325692,3.86944789,127.09,127.07,9.33]
[1765913326207,11.7382626,127.09,127.07,9.33]
[1765913326419,3.86944789,127.11,127.08,0.71]
[1765913327112,11.73603064,127.12,127.08,0.71]
[1765913327316,3.86944789,127.11,127.08,0.71]
[1765913327502,3.86944789,127.1,127.08,0.71]
[1765913327707,3.86944789,127.1,127.08,9.33]
[1765913328110,11.73691765,127.11,127.09,0.71]
[1765913328602,7.86746976,127.11,127.09,0.71]
[1765913329108,11.73631054,127.12,127.09,0.71]
[1765913329827,12.24631054,127.12,127.09,0.71]
[1765913330120,3.86944789,127.11,127.09,0.71]
[1765913330296,3.86944789,127.11,127.09,9.33]
[1765913330496,11.73691929,127.11,127.09,9.33]
[1765913331001,7.8674714,127.11,127.09,9.33]
[1765913331199,11.73691929,127.11,127.09,9.33]
[1765913333025,11.73691929,127.11,127.09,0.71]
[1765913333208,12.24691929,127.11,127.09,8.62]
[1765913333404,12.24691929,127.11,127.07,8.57937185]
[1765913333616,12.24691929,127.11,127.08,8.62]
[1765913333915,12.24691929,127.11,127.08,9.33]
[1765913334423,12.24691929,127.11,127.08,0.71]
[1765913334599,12.24691929,127.11,127.08,9.33]
[1765913334799,7.8674714,127.11,127.08,16.48900084]
[1765913335128,11.73691929,127.11,127.09,0.71]
[1765913336526,3.86944789,127.11,127.09,0.71]
[1765913338626,11.73717921,127.11,127.08,9.33]
[1765913339406,12.24717921,127.11,127.08,0.71]
[1765913339937,11.73717921,127.11,127.09,0.71]
[1765913340407,11.73717921,127.11,127.08,17.19901929]
[1765913340607,11.73717921,127.11,127.09,0.71]
[1765913342626,8.37688358,127.12,127.09,0.71]
[1765913342821,3.86944789,127.11,127.09,0.71]
[1765913344527,11.73670129,127.11,127.09,0.71]
[1765913344823,7.86520862,127.15,127.11,0.71]
[1765913345005,11.73465651,127.15,127.12,9.33]
[1765913346009,3.86944789,127.14,127.12,8.62]
[1765913346225,0.51,127.12,127.08,7.86886118]
[1765913346528,3.86944789,127.11,127.1,8.62]
[1765913346914,0.51,127.12,127.08,7.86886118]
[1765913347133,3.86944789,127.11,127.08,7.86886118]
[1765913347431,3.86891016,127.11,127.09,8.62]
[1765913347638,11.73667686,127.11,127.09,8.62]
[1765913347998,3.86891016,127.1,127.09,9.33]
[1765913348204,11.73667686,127.11,127.09,9.33]
[1765913350814,3.86891016,127.12,127.09,9.33]
[1765913351003,12.24549291,127.12,127.09,9.33]
[1765913351225,11.73549291,127.12,127.09,9.33]
[1765913351433,7.86618046,127.13,127.1,0.71]
[1765913352138,3.86891016,127.15,127.1,0.71]
[1765913352463,22.1708507,127.16,127.11,0.71]
[1765913352613,10.43767296,127.16,127.13,0.71]
[1765913352936,7.86413703,127.16,127.14,0.71]
[1765913353133,0.51,127.18,127.15,8.62]
[1765913353335,3.86891016,127.16,127.13,7.86591106]
[1765913353538,7.86264249,127.19,127.14,9.33]
[1765913353723,3.86891016,127.17,127.15,0.71]
[1765913353908,3.86891016,127.17,127.15,9.33]
[1765913354606,11.73268126,127.17,127.15,9.33]
[1765913356024,11.73268126,127.17,127.13,7.86566677]
[1765913356236,11.73268126,127.17,127.14,9.33]
[1765913356437,4.37891016,127.15,127.13,8.62]
[1765913356743,11.73425544,127.14,127.13,8.62]
[1765913357038,11.73425544,127.14,127.11,8.62]
[1765913357039,12.24425544,127.14,127.11,8.62]
[1765913357243,3.86891016,127.13,127.11,9.33]
[1765913358040,12.24425544,127.14,127.11,9.33]
[1765913360034,3.86891016,127.13,127.11,8.62]
[1765913360227,4.37891016,127.12,127.08,7.86878497]
[1765913360539,3.86891016,127.11,127.09,9.33]
[1765913361119,4.37891016,127.12,127.09,9.33]
[1765913361738,12.24599749,127.12,127.09,9.33]
[1765913364751,12.24599749,127.12,127.09,8.62]
[1765913365127,12.24599749,127.12,127.09,9.33]
[1765913368226,8.37708733,127.12,127.09,9.33]
[1765913368441,12.24599749,127.12,127.09,0.71]
[1765913368637,12.24599749,127.12,127.09,9.33]
[1765913371258,4.37891016,127.11,127.09,8.62]
[1765913371544,3.86891016,127.11,127.09,8.62]
[1765913371852,11.73620627,127.11,127.09,9.33]
[1765913372548,12.24620627,127.11,127.09,8.62]
[1765913373547,3.86891016,127.11,127.09,9.33]
[1765913373937,12.245804,127.12,127.09,9.33]
[1765913375356,4.37891016,127.11,127.09,8.62]
[1765913376536,7.86782061,127.1,127.09,8.62]
[1765913377551,11.73632278,127.11,127.09,8.62]
[1765913378142,11.73632278,127.11,127.09,9.28]
[1765913378452,14.30658312,127.14,127.1,0.66]
[1765913378453,11.73529893,127.13,127.1,0.66]
[1765913378830,22.17221096,127.14,127.11,0.66]
[1765913379231,7.86495425,127.15,127.11,0.66]
[1765913379445,11.73386441,127.15,127.13,0.66]
[1765913379653,11.73386441,127.15,127.12,9.28]
[1765913379931,7.86495425,127.15,127.12,8.62]
[1765913380140,7.86495425,127.15,127.13,0.66]
[1765913380347,11.73386441,127.15,127.13,0.66]
[1765913380732,22.17020736,127.17,127.13,0.66]
[1765913381031,22.68020736,127.17,127.13,0.66]
[1765913381646,4.37891016,127.16,127.14,8.62]
[1765913381848,4.37891016,127.15,127.14,8.62]
[1765913382655,7.86534528,127.14,127.12,9.28]
[1765913382858,11.73425544,127.14,127.12,9.28]
[1765913383240,11.73425544,127.14,127.12,8.62]
[1765913383447,12.24425544,127.14,127.12,8.62]
[1765913383841,11.73425544,127.14,127.12,8.62]
[1765913384155,12.24425544,127.14,127.11,9.28]
[1765913384363,11.73425544,127.14,127.11,9.28]
[1765913385034,12.24425544,127.14,127.11,9.28]
[1765913385459,10.85002914,127.14,127.11,9.28]
[1765913385956,8.37410821,127.16,127.13,0.66]
[1765913386166,10.84879207,127.16,127.13,0.66]
[1765913386657,2.47468386,127.15,127.12,9.28]
[1765913386860,2.98468386,127.15,127.12,9.28]
[1765913387164,2.47468386,127.15,127.12,9.28]
[1765913387349,28.03437873,127.16,127.12,9.28]
[1765913387556,7.8649915,127.15,127.12,9.28]
[1765913387852,10.33967536,127.15,127.12,9.28]
[1765913388057,10.33967536,127.15,127.13,0.66]
[1765913388265,2.47468386,127.16,127.13,0.66]
[1765913388456,10.43767296,127.17,127.13,0.66]
[1765913388457,20.77635433,127.17,127.13,0.66]
[1765913388855,23.76900127,127.18,127.13,0.66]
[1765913388856,10.33786628,127.18,127.13,0.66]
[1765913389166,10.33786628,127.18,127.14,0.66]
[1765913389167,7.86318242,127.18,127.14,0.66]